bitfinex/quotes_BTCUSD_20251120
["timestamp","ask_amount","ask_price","bid_price","bid_amount"]
[1763682099520,0.150936,87191.0,87182.0,0.05674531]
[1763682099718,0.05210249,87213.0,87191.0,0.01936]
[1763682099914,0.05210249,87209.0,87191.0,0.01936]
[1763682100113,0.00921,87216.0,87191.0,0.01936]
[1763682100114,2.304135,87207.0,87191.0,0.01936]
[1763682100313,0.0104406,87206.0,87195.0,0.11476708]
[1763682100629,0.5,87224.0,87216.0,0.01936]
[1763682100831,0.03146251,87217.0,87216.0,0.04536]
[1763682101031,0.03146251,87217.0,87216.0,0.08411]
[1763682101201,0.738327,87216.0,87210.0,0.01936]
[1763682101407,0.657773,87214.0,87210.0,0.01936]
[1763682101644,0.51044552,87213.0,87210.0,0.025171]
[1763682101843,0.142628,87216.0,87210.0,0.025171]
[1763682102041,0.51045028,87215.0,87212.0,0.026]
[1763682102358,0.00012593,87217.0,87210.0,0.063921]
[1763682102359,0.01045028,87214.0,87210.0,0.063921]
[1763682102522,0.00012593,87217.0,87216.0,0.026]
[1763682102718,0.03148377,87217.0,87216.0,0.026]
[1763682103066,0.01057854,87217.0,87216.0,0.06475]
[1763682103213,0.01057854,87217.0,87216.0,0.08601368]
[1763682103616,0.15883654,87217.0,87216.0,0.06475]
[1763682104365,0.17975073,87217.0,87216.0,0.06475]
[1763682104937,0.17975081,87217.0,87210.0,0.01936]
[1763682105154,0.263026,87215.0,87210.0,0.01936]
[1763682105396,0.00012593,87217.0,87211.0,0.15351708]
[1763682105397,0.294741,87213.0,87211.0,0.15351708]
[1763682105564,0.364438,87216.0,87212.0,0.026]
[1763682105786,0.294238,87214.0,87212.0,0.026]
[1763682105988,0.357734,87216.0,87212.0,0.06475]
[1763682106193,0.189169,87214.0,87210.0,0.01936]
[1763682106394,2.308572,87216.0,87210.0,0.01936]
[1763682106593,2.263054,87216.0,87210.0,0.01936]
[1763682106772,2.263054,87216.0,87202.0,0.01936]
[1763682106976,0.00012593,87217.0,87202.0,0.01936]
[1763682106977,2.780149,87214.0,87202.0,0.01936]
[1763682107172,2.397344,87210.0,87202.0,0.01936]
[1763682107396,1.674766,87208.0,87202.0,0.01936]
[1763682107783,4.80907,87216.0,87202.0,0.01936]
[1763682107988,3.541579,87214.0,87201.0,0.01936]
[1763682108191,0.889129,87212.0,87201.0,0.01936]
[1763682108381,0.552011,87210.0,87201.0,0.01936]
[1763682108832,4.246684,87216.0,87201.0,0.01936]
[1763682109026,0.00012593,87217.0,87201.0,0.01936]
[1763682109027,0.228965,87207.0,87201.0,0.01936]
[1763682111150,0.5,87207.0,87206.0,0.026]
[1763682111318,0.01800219,87208.0,87206.0,0.04559429]
[1763682111514,0.01800219,87208.0,87207.0,0.06475]
[1763682113314,0.01800219,87208.0,87201.0,0.01936]
[1763682113512,0.01800219,87208.0,87207.0,0.026]
[1763682113944,0.01800219,87208.0,87207.0,1.0]
[1763682114084,0.53296919,87208.0,87207.0,1.0]
[1763682114475,0.53353417,87208.0,87207.0,1.0]
[1763682114670,0.14189117,87208.0,87207.0,1.16475]
[1763682114871,0.13168117,87208.0,87207.0,1.16475]
[1763682115200,0.01856717,87208.0,87207.0,1.16475]
[1763682115626,0.10696498,87208.0,87207.0,1.126]
[1763682116352,0.10696498,87208.0,87207.0,1.026]
[1763682116704,0.00056498,87208.0,87207.0,1.026]
[1763682117696,0.00056498,87208.0,87207.0,1.06475]
[1763682118955,0.01856625,87208.0,87207.0,1.06475]
[1763682121532,0.00056498,87208.0,87207.0,1.06475]
[1763682121742,0.00056498,87208.0,87207.0,1.171225]
[1763682125582,0.00012593,87217.0,87207.0,1.319825]
[1763682125746,0.00012593,87217.0,87216.0,0.14052708]
[1763682125941,0.00012593,87217.0,87216.0,0.15428602]
[1763682126166,0.00012593,87217.0,87216.0,0.17937708]
[1763682126167,0.00040837,87217.0,87216.0,0.17937708]
[1763682126329,0.00040837,87217.0,87216.0,0.06461]
[1763682127156,0.00040837,87217.0,87216.0,0.08254771]
[1763682129481,0.00040837,87217.0,87216.0,0.06461]
[1763682130115,0.323,87243.0,87216.0,0.06461]
[1763682130440,0.323,87239.0,87224.0,0.11476708]
[1763682130577,0.323,87235.0,87225.0,0.01917]
[1763682130776,0.323,87233.0,87225.0,0.03256371]
[1763682130979,0.323,87229.0,87225.0,0.01917]
[1763682131180,0.323,87227.0,87226.0,0.11476708]
[1763682131402,0.00028239,87226.0,87225.0,0.01917]
[1763682131763,0.00028239,87226.0,87225.0,0.04493]
[1763682132220,0.00028239,87226.0,87225.0,0.08378]
[1763682132420,0.000126,87239.0,87225.0,0.092158]
[1763682132598,0.000126,87239.0,87238.0,0.15969708]
[1763682132999,0.000126,87239.0,87238.0,0.19854708]
[1763682134071,0.000126,87239.0,87238.0,0.08378]
[1763682135027,0.01812281,87239.0,87238.0,0.08378]
[1763682135197,0.01812281,87239.0,87238.0,0.092158]
[1763682135580,0.000126,87239.0,87238.0,0.092158]
[1763682138123,0.00053382,87239.0,87238.0,0.092158]
[1763682138840,0.323,87279.0,87239.0,0.03885]
[1763682139023,0.323,87275.0,87260.0,0.02576]
[1763682139233,0.323,87268.0,87260.0,0.02576]
[1763682139438,0.323,87266.0,87261.0,0.01917]
[1763682139633,0.323,87262.0,87261.0,0.01917]
[1763682139839,0.769714,87262.0,87261.0,0.01917]
[1763682140047,0.697882,87262.0,87261.0,0.01917]
[1763682140482,0.697882,87262.0,87248.0,0.01917]
[1763682140677,0.323,87258.0,87248.0,0.01917]
[1763682140867,1.40393,87255.0,87248.0,0.01917]
[1763682141064,1.182864,87253.0,87248.0,0.024972]
[1763682141568,1.505864,87253.0,87252.0,0.02576]
[1763682141781,1.472255,87253.0,87252.0,0.02576]
[1763682142150,1.3465,87253.0,87252.0,0.06461]
[1763682142346,0.323,87250.0,87248.0,0.01917]
[1763682142603,2.033069,87249.0,87248.0,0.01917]
[1763682142745,0.323,87248.0,87227.0,0.03885]
[1763682142955,0.323,87244.0,87227.0,0.03885]
[1763682143203,0.323,87240.0,87227.0,0.03885]
[1763682143366,0.01771938,87266.0,87225.0,0.01917]
[1763682143367,2.464952,87237.0,87225.0,0.01917]
[1763682143567,0.2,87260.0,87225.0,0.01917]
[1763682143568,0.323,87236.0,87225.0,0.019296]
[1763682144998,0.00025092,87247.0,87225.0,0.019296]
[1763682145231,0.323,87243.0,87225.0,0.019296]
[1763682145520,0.323,87239.0,87226.0,0.0077316]
[1763682145696,1.39903,87240.0,87225.0,0.019296]
[1763682145697,0.323,87235.0,87225.0,0.019296]
[1763682145898,0.323,87231.0,87225.0,0.019296]
[1763682146249,0.963002,87230.0,87225.0,0.019296]
[1763682147122,0.323,87228.0,87225.0,0.019296]
[1763682147344,0.00025092,87247.0,87225.0,0.019296]
[1763682147345,0.699496,87226.0,87225.0,0.019296]
[1763682148239,0.699496,87226.0,87225.0,0.045056]
[1763682148240,0.671866,87226.0,87225.0,0.045056]
[1763682149000,0.671866,87226.0,87225.0,0.000126]
[1763682150413,0.72396849,87226.0,87225.0,0.000126]
[1763682150600,0.72396849,87226.0,87188.0,0.01869]
[1763682150601,0.04961894,87214.0,87188.0,0.01869]
[1763682150819,0.37510249,87208.0,87207.0,1.00012593]
[1763682151033,5.07874702,87208.0,87207.0,1.00012593]
[1763682151244,1.322682,87208.0,87207.0,1.00012593]
[1763682151597,1.34068888,87208.0,87207.0,1.00012593]
[1763682152342,1.40325816,87208.0,87207.0,1.00012593]
[1763682152458,1.34068888,87208.0,87207.0,1.00012593]
[1763682152903,1.44824989,87208.0,87207.0,1.00012593]
[1763682153123,1.49786883,87208.0,87207.0,1.00012593]
[1763682153296,1.4032581,87208.0,87207.0,1.00012593]
[1763682153505,1.41370984,87208.0,87207.0,0.99512593]
[1763682153757,1.41364773,87208.0,87207.0,0.99512593]
[1763682153887,1.46326667,87208.0,87207.0,0.99512593]
[1763682154420,1.4423482,87208.0,87207.0,0.99512593]
[1763682154602,1.47370583,87208.0,87207.0,0.99512593]
[1763682155202,1.4423482,87208.0,87207.0,0.99512593]
[1763682155806,1.4423482,87208.0,87207.0,0.99462593]
[1763682156236,1.39272926,87208.0,87207.0,0.99462593]
[1763682158283,1.34062677,87208.0,87207.0,1.05051612]
[1763682158660,1.34062677,87208.0,87207.0,1.03241612]
[1763682159099,1.34062677,87208.0,87207.0,0.99462593]
[1763682160172,1.06979137,87208.0,87207.0,0.99462593]
[1763682160390,1.11941031,87208.0,87207.0,0.99462593]
[1763682160887,1.06979137,87208.0,87207.0,0.99462593]
[1763682162188,1.39279137,87208.0,87207.0,0.99462593]
[1763682162591,1.37478449,87208.0,87207.0,0.99462593]
[1763682164016,1.322682,87208.0,87207.0,1.09408852]
[1763682164376,1.322682,87208.0,87207.0,0.99462593]
[1763682165763,1.34068889,87208.0,87207.0,0.99462593]
[1763682168268,1.39279138,87208.0,87207.0,0.99462593]
[1763682168420,1.44241032,87208.0,87207.0,0.99462593]
[1763682169072,1.39279138,87208.0,87207.0,0.99462593]
[1763682169297,1.44241032,87208.0,87207.0,0.99462593]
[1763682169423,1.39279138,87208.0,87207.0,0.99462593]
[1763682169776,1.1866435,87208.0,87207.0,0.99462593]
[1763682169977,1.23626244,87208.0,87207.0,0.99462593]
[1763682170276,1.1866435,87208.0,87207.0,0.99462593]
[1763682172487,1.21793086,87208.0,87207.0,0.99462593]
[1763682175417,1.24201193,87208.0,87207.0,0.99462593]
[1763682176422,1.22400504,87208.0,87207.0,0.99462593]
[1763682177300,1.21609798,87208.0,87207.0,0.99462593]
[1763682177715,1.16399549,87208.0,87207.0,1.05883097]
[1763682177896,1.16399549,87208.0,87207.0,1.02091593]
[1763682178831,1.13270813,87208.0,87207.0,1.02091593]
[1763682179200,1.16410395,87208.0,87207.0,1.02091593]
[1763682179400,1.1431734,87208.0,87207.0,0.99462593]
[1763682179607,1.2132917,87208.0,87207.0,0.99462593]
[1763682180065,1.20281697,87208.0,87207.0,0.99462593]
[1763682181470,1.2629276,87208.0,87207.0,0.99462593]
[1763682181669,1.28391099,87208.0,87207.0,0.99462593]
[1763682182247,1.23429205,87208.0,87207.0,0.99462593]
[1763682183688,1.2948493,87208.0,87207.0,0.99462593]
[1763682183841,1.29486114,87208.0,87207.0,0.99462593]
[1763682184242,1.34448008,87208.0,87207.0,0.99462593]
[1763682184868,1.28391099,87208.0,87207.0,0.40904907]
[1763682185073,1.34296492,87208.0,87207.0,0.04082492]
[1763682185284,1.37082136,87208.0,87207.0,0.04082492]
[1763682185600,1.37082136,87208.0,87207.0,0.03517224]
[1763682185797,1.28391099,87208.0,87207.0,0.03517224]
[1763682188591,1.18218956,87208.0,87207.0,0.03517224]
[1763682188805,0.85918956,87208.0,87207.0,0.03517224]
[1763682189012,0.91129205,87208.0,87207.0,0.03517224]
[1763682189570,1.28391099,87208.0,87207.0,0.03517224]
[1763682190549,1.26590464,87208.0,87207.0,0.03517224]
[1763682191078,1.2162857,87208.0,87207.0,0.03517224]
[1763682191876,1.26590464,87208.0,87207.0,0.03517224]
[1763682192274,1.2162857,87208.0,87207.0,0.03517224]
[1763682193398,1.21625345,87208.0,87207.0,0.03517224]
[1763682193603,1.18215853,87208.0,87207.0,0.03517224]
[1763682193770,1.23426102,87208.0,87207.0,0.03517224]
[1763682194575,0.85915853,87208.0,87207.0,0.09659224]
[1763682194781,0.83507746,87208.0,87207.0,0.05985224]
[1763682195179,0.81706989,87208.0,87207.0,0.05985224]
[1763682195386,1.14006989,87208.0,87207.0,0.05985224]
[1763682196432,1.14006639,87208.0,87207.0,0.05985224]
[1763682197974,1.14006639,87208.0,87207.0,0.09659224]
[1763682198163,0.03448317,87226.0,87207.0,0.09659224]
[1763682198164,2.0,87223.0,87207.0,0.09659224]
[1763682198444,0.323,87224.0,87222.0,0.01935]
[1763682198620,2.35440907,87223.0,87222.0,0.01935]
[1763682198958,2.323,87223.0,87222.0,0.01935]
[1763682199170,2.34100358,87223.0,87222.0,0.04403]
[1763682200710,2.34100358,87223.0,87222.0,0.08077]
[1763682200910,2.34100358,87223.0,87207.0,0.03517224]
[1763682200911,0.05210249,87221.0,87207.0,0.03517224]
[1763682201273,0.37510249,87209.0,87207.0,0.03517224]
[1763682201409,2.37510249,87208.0,87207.0,0.03517224]
[1763682202636,2.39921169,87208.0,87207.0,0.03517224]
[1763682202833,2.37510249,87208.0,87207.0,0.03517224]
[1763682206723,2.42472143,87208.0,87207.0,0.03517224]
[1763682206924,2.44883922,87208.0,87207.0,0.03517224]
[1763682207157,2.25587966,87208.0,87207.0,0.03517224]
[1763682207479,2.20626072,87208.0,87207.0,0.03517224]
[1763682207629,2.18214293,87208.0,87207.0,0.03517224]
[1763682208030,2.23176187,87208.0,87207.0,0.03517224]
[1763682209347,2.24976975,87208.0,87207.0,0.03517224]
[1763682209566,2.18214293,87208.0,87207.0,0.03517224]
[1763682210091,2.23176187,87208.0,87207.0,0.03517224]
[1763682210302,2.18214293,87208.0,87207.0,0.03517224]
[1763682211233,2.23176187,87208.0,87207.0,0.03517224]
[1763682212259,2.24976946,87208.0,87207.0,0.03517224]
[1763682212464,2.30525682,87208.0,87207.0,0.03517224]
[1763682212602,2.39751301,87208.0,87207.0,0.03517224]
[1763682213019,2.36750114,87208.0,87207.0,0.03517224]
[1763682213317,2.33975141,87208.0,87207.0,0.03517224]
[1763682214643,1.96713247,87208.0,87207.0,0.03517224]
[1763682215207,2.25876401,87208.0,87207.0,0.03517224]
[1763682215376,1.96712787,87208.0,87207.0,0.03517224]
[1763682215588,2.25876401,87208.0,87207.0,0.03517224]
[1763682215747,2.29012788,87208.0,87207.0,0.03517224]
[1763682216159,2.29013216,87208.0,87207.0,0.03517224]
[1763682217442,2.25876401,87208.0,87207.0,0.03517224]
[1763682218068,2.24075642,87208.0,87207.0,0.03517224]
[1763682220098,2.32175504,87208.0,87207.0,0.03517224]
[1763682222030,2.2721361,87208.0,87207.0,0.03517224]
[1763682222598,2.32175504,87208.0,87207.0,0.03517224]
[1763682223423,2.2721361,87208.0,87207.0,0.03517224]
[1763682223938,2.24075642,87208.0,87207.0,0.03517224]
[1763682224127,2.21663752,87208.0,87207.0,0.03517224]
[1763682224509,2.16453503,87208.0,87207.0,0.06124224]
[1763682224792,2.16453503,87208.0,87207.0,0.10016224]
[1763682224793,1.84153503,87208.0,87207.0,0.10016224]
[1763682224924,2.16453503,87208.0,87207.0,0.10016224]
[1763682225121,1.84153503,87208.0,87207.0,0.10016224]
[1763682225773,2.13004044,87208.0,87207.0,0.10016224]
[1763682225947,1.80704044,87215.0,87207.0,0.10016224]
[1763682226155,1.80704044,87215.0,87208.0,0.03892]
[1763682226357,1.80704044,87215.0,87214.0,0.02607]
[1763682226766,2.13004044,87215.0,87214.0,0.06499]
[1763682228353,1.80704044,87215.0,87214.0,0.06499]
[1763682228566,2.13004044,87215.0,87214.0,0.06499]
[1763682233041,0.323,87215.0,87214.0,0.06499]
[1763682234067,0.323,87214.0,87207.0,0.03517224]
[1763682234251,2.0,87214.0,87207.0,0.03517224]
[1763682234437,2.323,87214.0,87213.0,0.02607]
[1763682234771,0.323,87214.0,87213.0,0.06499]
[1763682236023,0.0180025,87215.0,87213.0,0.06499]
[1763682236225,0.0180025,87215.0,87214.0,0.06499]
[1763682238745,2.16096522,87215.0,87214.0,0.06499]
[1763682238945,2.323,87215.0,87214.0,0.02607]
[1763682239156,2.34100268,87215.0,87214.0,0.02607]
[1763682239678,2.34100268,87215.0,87214.0,0.07111422]
[1763682241963,2.34100268,87215.0,87214.0,0.06499]
[1763682243395,2.34100268,87215.0,87214.0,0.02607]
[1763682243723,0.323,87212.0,87207.0,0.07431224]
[1763682244227,0.323,87212.0,87211.0,0.02556]
[1763682244587,0.323,87212.0,87211.0,0.0647]
[1763682244787,0.01800268,87215.0,87211.0,0.07661622]
[1763682244988,2.0,87224.0,87214.0,0.14032708]
[1763682245192,2.0,87234.0,87215.0,0.0137591]
[1763682245419,2.0,87229.0,87216.0,0.01795824]
[1763682245595,2.0,87246.0,87217.0,0.01375878]
[1763682245798,2.0,87242.0,87230.0,0.01724]
[1763682246015,0.01924,87263.0,87241.0,0.11476708]
[1763682246351,0.01724,87260.0,87246.0,0.0428]
[1763682246484,0.5,87279.0,87246.0,0.08194]
[1763682246685,0.5,87279.0,87246.0,0.10161071]
[1763682246891,0.01775093,87273.0,87246.0,0.10161071]
[1763682247309,0.0002929,87247.0,87246.0,0.10161071]
[1763682248113,0.01828873,87247.0,87246.0,0.10161071]
[1763682250302,0.01878436,87269.0,87246.0,0.10161071]
[1763682250513,2.0,87268.0,87247.0,0.03914]
[1763682250717,2.0,87268.0,87250.0,0.72693083]
[1763682250920,4.199e-05,87269.0,87268.0,0.04177]
[1763682251072,4.199e-05,87269.0,87268.0,0.08091]
[1763682251277,4.199e-05,87269.0,87268.0,0.089001]
[1763682253880,4.199e-05,87269.0,87261.0,0.01621]
[1763682254267,2.0,87268.0,87261.0,0.05535]
[1763682254580,4.199e-05,87269.0,87268.0,0.02556]
[1763682254808,4.199e-05,87269.0,87268.0,0.033651]
[1763682254965,4.199e-05,87269.0,87268.0,0.07272696]
[1763682258441,0.01803625,87269.0,87268.0,0.07272696]
[1763682258653,4.199e-05,87269.0,87268.0,0.07272696]
[1763682259088,0.00073183,87269.0,87268.0,0.07272696]
[1763682260356,0.00073183,87269.0,87268.0,0.06463596]
[1763682261199,0.00073183,87269.0,87261.0,0.01621]
[1763682261397,4.199e-05,87269.0,87261.0,0.01621]
[1763682261597,4.199e-05,87269.0,87261.0,0.05535]
[1763682262040,4.199e-05,87269.0,87268.0,0.02556]
[1763682262642,0.323,87275.0,87268.0,0.02556]
[1763682262643,2.0,87275.0,87268.0,0.033651]
[1763682262989,2.0,87279.0,87269.0,0.11476708]
[1763682263245,2.0,87279.0,87270.0,0.01484181]
[1763682263441,2.0,87278.0,87271.0,0.01721]
[1763682265304,2.0,87277.0,87271.0,0.01721]
[1763682266090,1.83044356,87277.0,87272.0,0.11476708]
[1763682266443,2.0,87277.0,87276.0,0.02556]
[1763682266995,2.0,87277.0,87276.0,0.0647]
[1763682267164,2.0,87277.0,87276.0,0.02556]
[1763682267363,2.0009406,87277.0,87276.0,0.02556]
[1763682267617,2.0009406,87277.0,87271.0,0.05635]
[1763682267618,2.03234125,87277.0,87271.0,0.05635]
[1763682267795,0.03140065,87276.0,87272.0,0.15390708]
[1763682268121,2.0,87277.0,87273.0,0.01711171]
[1763682268282,4.198e-05,87278.0,87273.0,0.01711171]
[1763682268482,2.0,87276.0,87273.0,0.01711171]
[1763682268695,2.0,87277.0,87273.0,0.01711171]
[1763682268887,0.03143277,87276.0,87274.0,0.01882288]
[1763682269083,2.0,87277.0,87271.0,0.01721]
[1763682269267,0.03147552,87276.0,87273.0,0.11476708]
[1763682269472,0.03147552,87275.0,87273.0,0.11476708]
[1763682269707,0.03147552,87274.0,87273.0,0.11476708]
[1763682270387,0.03147552,87274.0,87273.0,0.14032708]
[1763682270748,0.03147552,87274.0,87273.0,0.17946708]
[1763682271242,4.198e-05,87278.0,87273.0,0.19321703]
[1763682271402,4.198e-05,87278.0,87277.0,0.02556]
[1763682271613,0.02108654,87278.0,87277.0,0.02556]
[1763682271812,0.03160882,87278.0,87277.0,0.08436771]
[1763682272691,0.03160882,87278.0,87271.0,0.01721]
[1763682272860,0.03156684,87277.0,87272.0,0.11476708]
[1763682273109,0.03156684,87276.0,87272.0,0.11476708]
[1763682273313,0.03156684,87275.0,87272.0,0.11476708]
[1763682273488,0.00081522,87273.0,87272.0,0.11476708]
[1763682273702,0.03238206,87273.0,87272.0,0.11476708]
[1763682273909,0.03238206,87273.0,87272.0,0.14088708]
[1763682274241,0.03238206,87273.0,87272.0,0.15669679]
[1763682274439,0.03238206,87273.0,87272.0,0.19671679]
[1763682275059,0.03238206,87273.0,87272.0,0.02612]
[1763682275232,0.03238206,87273.0,87272.0,0.06614]
[1763682275790,0.00081522,87273.0,87272.0,0.06614]
[1763682276220,0.03235656,87273.0,87272.0,0.06614]
[1763682277099,0.03235437,87273.0,87272.0,0.06614]
[1763682277298,0.03234946,87273.0,87272.0,0.06614]
[1763682277686,0.03234946,87273.0,87271.0,0.01721]
[1763682277890,0.03153424,87272.0,87271.0,0.01721]
[1763682278595,0.03153424,87272.0,87271.0,0.04333]
[1763682278995,0.03153424,87272.0,87271.0,0.01721]
[1763682279893,0.03153424,87272.0,87271.0,0.08335]
[1763682280019,4.198e-05,87278.0,87271.0,0.091685]
[1763682280230,0.03153907,87277.0,87272.0,0.04002]
[1763682280436,0.03153907,87276.0,87272.0,0.04002]
[1763682280640,0.03153907,87275.0,87271.0,0.01721]
[1763682280891,0.03153907,87274.0,87271.0,0.01721]
[1763682281091,0.03153907,87273.0,87272.0,0.11476708]
[1763682281249,0.03153907,87273.0,87272.0,0.13196679]
[1763682281459,0.03153907,87273.0,87272.0,0.15808679]
[1763682281658,0.03153907,87273.0,87250.0,0.01999998]
[1763682281659,0.05758907,87273.0,87250.0,0.01999998]
[1763682282061,0.05758907,87273.0,87169.0,0.11476708]
[1763682282062,0.323,87260.0,87244.0,0.04002]
[1763682282226,0.323,87255.0,87239.0,0.01621]
[1763682282428,0.01753,87247.0,87239.0,0.01621]
[1763682282842,0.323,87245.0,87233.0,0.01621]
[1763682283059,0.03151782,87244.0,87235.0,0.11476708]
[1763682283268,0.03151782,87243.0,87235.0,0.11476708]
[1763682283442,0.323,87241.0,87233.0,0.01621]
[1763682283618,0.0562,87247.0,87233.0,0.01625199]
[1763682283943,0.323,87243.0,87233.0,0.01625199]
[1763682284107,2.0314983,87242.0,87233.0,0.01625199]
[1763682284310,2.0,87242.0,87233.0,0.01625199]
[1763682284866,2.0,87242.0,87234.0,0.11476708]
[1763682285180,2.323,87242.0,87241.0,0.02612]
[1763682285386,0.323,87242.0,87241.0,0.02612]
[1763682285598,0.323,87242.0,87241.0,0.06614]
[1763682286359,0.323,87242.0,87241.0,0.02612]
[1763682289160,2.0,87241.0,87233.0,0.01625199]
[1763682289343,0.02605,87236.0,87233.0,4.199e-05]
[1763682289831,0.323,87238.0,87233.0,4.199e-05]
[1763682289994,0.323,87236.0,87233.0,4.199e-05]
[1763682291427,0.01995,87238.0,87233.0,4.199e-05]
[1763682291591,0.323,87236.0,87233.0,4.199e-05]
[1763682292654,0.01995,87238.0,87233.0,4.199e-05]
[1763682292864,2.0,87237.0,87233.0,4.199e-05]
[1763682293698,2.0,87245.0,87236.0,0.02612]
[1763682293947,2.0171,87245.0,87233.0,4.199e-05]
[1763682294102,2.0,87244.0,87233.0,4.199e-05]
[1763682294310,0.02605,87234.0,87233.0,4.199e-05]
[1763682294558,2.02605,87234.0,87233.0,4.199e-05]
[1763682294748,2.38772,87234.0,87233.0,4.199e-05]
[1763682296408,2.43982249,87234.0,87233.0,4.199e-05]
[1763682296582,2.48944143,87234.0,87233.0,4.199e-05]
[1763682296785,2.43982249,87234.0,87233.0,4.199e-05]
[1763682297465,2.48944143,87234.0,87233.0,4.199e-05]
[1763682298329,2.43982249,87234.0,87233.0,4.199e-05]
[1763682298822,2.48944143,87234.0,87233.0,4.199e-05]
[1763682299430,2.43982249,87234.0,87233.0,4.199e-05]
[1763682300455,0.37510249,87229.0,87207.0,0.03504631]
[1763682300626,2.35903,87208.0,87207.0,0.03508829]
[1763682301137,2.49942143,87208.0,87207.0,0.03508829]
[1763682301369,2.48429077,87208.0,87207.0,0.03508829]
[1763682302270,2.53390971,87208.0,87207.0,0.03508829]
[1763682302878,2.48429077,87208.0,87207.0,0.03508829]
[1763682303444,2.53390971,87208.0,87207.0,0.03500584]
[1763682303813,2.49429077,87208.0,87207.0,0.03500584]
[1763682304043,2.52555032,87208.0,87207.0,0.01676584]
[1763682304239,2.54954963,87208.0,87207.0,0.01676584]
[1763682305397,2.54954963,87208.0,87207.0,0.01656947]
[1763682305599,2.54952091,87208.0,87207.0,0.01656947]
[1763682306949,2.1925216,87208.0,87207.0,0.01656947]
[1763682307721,2.46341911,87208.0,87207.0,0.01656947]
[1763682307938,2.39351828,87208.0,87207.0,0.01656947]
[1763682308140,2.43112828,87208.0,87207.0,0.01656947]
[1763682308344,2.48323077,87208.0,87207.0,0.01656947]
[1763682308541,2.53284971,87208.0,87207.0,0.01656947]
[1763682308767,0.05210249,87195.0,87180.0,0.0004]
[1763682308925,2.36884,87181.0,87180.0,0.0004]
[1763682309372,2.40645,87181.0,87180.0,0.0004]
[1763682309568,2.44094824,87181.0,87180.0,0.0004]
[1763682309774,2.37713824,87181.0,87180.0,0.0004]
[1763682309947,2.39398063,87181.0,87180.0,0.0004]
[1763682310554,2.0,87181.0,87180.0,0.06128]
[1763682310768,0.00010094,87195.0,87180.0,0.067408]
[1763682310769,2.0,87194.0,87180.0,0.067408]
[1763682310978,0.00010094,87195.0,87193.0,0.11476708]
[1763682311204,0.5,87231.0,87194.0,0.09092671]
[1763682311414,2.0,87218.0,87216.0,0.01452]
[1763682311589,2.0,87230.0,87216.0,0.01452]
[1763682311810,2.0,87230.0,87229.0,0.02506]
[1763682312214,2.323,87230.0,87229.0,0.06088]
[1763682312416,0.323,87228.0,87216.0,0.05034]
[1763682312846,0.01656,87217.0,87200.0,0.01857]
[1763682313046,0.04276,87217.0,87200.0,0.01857]
[1763682314066,0.323,87219.0,87207.0,0.11476708]
[1763682314267,0.323,87217.0,87207.0,0.11476708]
[1763682315217,0.5,87220.0,87216.0,0.02506]
[1763682315421,0.29323875,87220.0,87219.0,0.03475]
[1763682315814,0.29323875,87220.0,87219.0,0.07057]
[1763682316015,0.206761,87230.0,87219.0,0.07057]
[1763682316163,0.206761,87230.0,87229.0,0.11476708]
[1763682316364,0.206761,87230.0,87229.0,0.13982708]
[1763682316640,0.529761,87230.0,87229.0,0.17564708]
[1763682316842,0.323,87230.0,87229.0,0.06088]
[1763682317487,0.323,87229.0,87219.0,0.00969]
[1763682317633,0.00010112,87231.0,87229.0,0.02506]
[1763682318019,0.00010112,87231.0,87230.0,0.06088]
[1763682318650,0.00010112,87231.0,87224.0,0.11476708]
[1763682319329,0.00010112,87231.0,87230.0,0.02506]
[1763682319710,0.00010112,87231.0,87230.0,0.06088]
[1763682320388,0.00010112,87231.0,87220.0,0.03582]
[1763682320563,0.00010112,87231.0,87221.0,0.11476708]
[1763682320718,0.00010112,87231.0,87219.0,0.00969]
[1763682320929,0.323,87229.0,87211.0,0.01857]
[1763682321138,0.323,87225.0,87203.0,0.03582]
[1763682321332,0.323,87229.0,87203.0,0.03582]
[1763682321333,0.323,87221.0,87203.0,0.03582]
[1763682321540,0.323,87219.0,87200.0,0.01857]
[1763682321740,0.323,87215.0,87200.0,0.01857]
[1763682321940,0.323,87215.0,87180.0,0.0004]
[1763682321941,0.323,87213.0,87183.0,0.03582]
[1763682322142,0.323,87209.0,87183.0,0.03582]
[1763682322372,0.323,87209.0,87180.0,0.0004]
[1763682322373,0.323,87205.0,87180.0,0.0004]
[1763682322625,0.323,87203.0,87180.0,0.0004]
[1763682322789,0.323,87199.0,87180.0,0.0004]
[1763682322996,0.03761,87204.0,87180.0,0.0004]
[1763682322997,0.323,87195.0,87180.0,0.0004]
[1763682323337,0.323,87190.0,87180.0,0.0004]
[1763682323542,0.03761,87205.0,87180.0,0.0004]
[1763682323543,0.323,87186.0,87180.0,0.0004]
[1763682323735,0.323,87184.0,87180.0,0.0004]
[1763682324104,0.323,87181.0,87180.0,0.00082057]
[1763682327432,0.323,87181.0,87180.0,0.02588057]
[1763682327640,0.323,87181.0,87180.0,0.06170057]
[1763682327847,0.323,87181.0,87180.0,0.00082057]
[1763682329042,0.34100737,87181.0,87180.0,0.00082057]
[1763682329477,2.40481737,87181.0,87180.0,0.00082057]
[1763682329693,2.40481737,87181.0,87140.0,0.01039999]
[1763682329694,0.77510249,87180.0,87140.0,0.0004]
[1763682329925,0.01856,87144.0,87143.0,0.21102593]
[1763682330120,0.01856,87152.0,87143.0,0.21102593]
[1763682330305,0.323,87148.0,87143.0,0.21102593]
[1763682330738,0.323,87148.0,87144.0,0.03582]
[1763682331193,0.03450421,87158.0,87147.0,0.02423]
[1763682331434,0.03871,87175.0,87147.0,0.02423]
[1763682331714,0.323,87171.0,87143.0,0.21102593]
[1763682331919,0.323,87167.0,87145.0,0.11476708]
[1763682332126,0.323,87163.0,87145.0,0.11476708]
[1763682332338,0.323,87159.0,87146.0,0.0326193]
[1763682332547,0.323,87157.0,87146.0,0.0326193]
[1763682332754,0.323,87153.0,87146.0,0.0326193]
[1763682332961,0.323,87149.0,87147.0,0.02440452]
[1763682333161,0.323,87149.0,87144.0,0.11476708]
[1763682333529,0.323,87149.0,87148.0,0.02389]
[1763682333916,0.323,87149.0,87148.0,0.0597]
[1763682334172,0.323,87167.0,87148.0,0.0597]